Cogmind - Beta 16 @@@ ROGUE MODE // 2025.10.25 @ 08:30:04 Player: Moodge Result: Destroyed by G-34 Mercenary with Small Laser Performance ------------- Evolutions (0) 0 Regions Visited (1) 200 Robots Destroyed (16) 80 Value Destroyed (405) 405 Prototype IDs (0) 0 Alien Tech Used (0) 0 Bonus (0) 0 TOTAL SCORE: 685 Bonus ------- None Cogmind --------- Core Integrity 0/250 Matter 279/300 Energy 265/265 System Corruption 1% Temperature Cool (6) Movement Treading (160) Location -10/Materials Parts ------- > --- POWER (1) -------- Improved Ion Engine > --- PROPULSION (2) --- Improved Treads Improved Treads > --- UTILITY (2) ------ Large Storage Unit > --- WEAPON (2) ------- Particle Gun Light Assault Rifle > --- INVENTORY (15) --- Improved Ion Engine Improved Ion Engine Medium Storage Unit Large Storage Unit Sensor Array Sensor Array Sensor Array Seismic Detector Particle Gun Peak State ------------ > --- POWER ------------ Improved Ion Engine > --- PROPULSION ------- Improved Treads Improved Treads > --- UTILITY ---------- Large Storage Unit ECM Suite > --- WEAPON ----------- Particle Gun Particle Gun > --- INVENTORY -------- Improved Ion Engine Improved Ion Engine Improved Ion Engine Improved Treads Improved Treads Medium Storage Unit Large Storage Unit Sensor Array Sensor Array Seismic Detector Backup Plating I Particle Gun Particle Gun [Rating: 14] Favorites ----------- Power Improved Ion Engine Engine Improved Ion Engine Propulsion Improved Treads Treads Improved Treads Leg Aluminum Leg Wheel Wheel Utility ECM Suite Device ECM Suite Storage Large Storage Unit Protection Backup Plating I Weapon Particle Gun Energy Gun Particle Gun Ballistic Gun Light Assault Rifle Build | -11 -10 ------- Run | Yrd Mat Slots Evolved . | . . Power . | . . Propulsion . | . . Utility . | . . Weapon . | . . Parts Attached 23 | 4 19 Power 3 | . 3 Engine 3 | . 3 Core . | . . Reactor . | . . Propulsion 9 | 2 7 Treads 5 | 1 4 Leg 3 | 1 2 Wheel 1 | . 1 Hover . | . . Flight . | . . Utility 4 | 1 3 Device 1 | . 1 Storage 3 | 1 2 Processor . | . . Hackware . | . . Protection . | . . Artifact . | . . Weapon 7 | 1 6 Energy Gun 5 | 1 4 Energy Cannon . | . . Ballistic Gun 2 | . 2 Ballistic Cannon . | . . Launcher . | . . Special Weapon . | . . Impact Weapon . | . . Slashing Weapon . | . . Piercing Weapon . | . . Special Melee Weapon . | . . Unidentified Prototypes . | . . Parts Lost 3 | . 3 Power 1 | . 1 Propulsion . | . . Utility 1 | . 1 Weapon 1 | . 1 Highest Loss Streak 2 | . 2 To Critical Strikes . | . . Average Backups 9 | 5 9 Power 2 | 1 2 Propulsion 2 | 2 2 Utility 3 | . 3 Weapon 1 | 1 1 Tool/Special . | . . Unused Backups 16 | . 16 Power 3 | . 3 Propulsion 2 | . 2 Utility 8 | . 8 Weapon 3 | . 3 Tool/Special . | . . Average Slot Usage (%) 93 | . 93 Engine 12 | . 12 Treads 20 | . 20 Leg 7 | . 7 Device 12 | . 12 Storage 14 | . 14 Energy Gun 19 | . 19 Ballistic Gun 5 | . 5 Peak Build Rating 14 | 4 14 Average Rating 10 | 3 10 On Entrance 2 | . 4 Avg Prop Armor Cover (%) 17 | 17 17 Naked Turns . | . . Heaviest Build 35 | 7 35 Greatest Support 46 | 20 46 Greatest Overweight (x) . | . . Average Overweight (x) . | . . Largest Inventory Capacity 15 | 8 15 Average Capacity 11 | 7 11 Most Carried 15 | 8 15 Average Carried 9 | 6 9 Final Capacity 15 | 8 15 Final Carried 9 | 8 9 Class Distribution -------------------- 100% | Mutant Dominant Class ---------------- Mutant | -10/Materials Resources | -11 -10 ----------- Run | Yrd Mat Matter Collected 401 | 240 161 Remotely . | . . Salvage Created 437 | . 437 Parts 19 | . 19 Haulers Intercepted . | . . Recyclers Shooed . | . . Parts Field Recycled . | . . Retrieved Matter . | . . Parts Self-Destructed . | . . Prevented . | . . Parts Restored . | . . Kills | -11 -10 ------- Run | Yrd Mat Combat Hostiles Destroyed 15 | . 15 Guns 15 | . 15 Classes Destroyed 3 | . 3 Watcher 1 | . 1 Swarmer 6 | . 6 Grunt 9 | . 9 Best Kill Streak 2 | . 2 Combat Bots Only 2 | . 2 Max Kills in Single Turn 2 | . 2 Gunslinging 1 | . 1 Exploded . | . . Melee . | . . Uniques/NPCs Destroyed . | . . Combat | -11 -10 -------- Run | Yrd Mat Hostile Shots Fired 118 | . 118 Missed 22 | . 22 Hits 96 | . 96 Projectile 96 | . 96 Critical Strikes 3 | . 3 Damage Taken 940 | . 940 Core 258 | . 258 Absorbed by Shields . | . . Regen/Repaired (Parts) 14 | . 14 Core Remaining (%) 100 | 100 . Volleys Fired 94 | . 94 Largest 2 | . 2 Hottest 130 | . 130 Shots Fired 130 | . 130 Gun 130 | . 130 Cannon . | . . Launcher . | . . Special . | . . Kinetic 43 | . 43 Thermal 87 | . 87 Explosive . | . . Electromagnetic . | . . Robot Hit Streak 8 | . 8 Robot Miss Streak 5 | . 5 Penetration Max . | . . Secondary Targets 1 | . 1 Max Gunslinging Chain 1 | . 1 Shots Hit Robots 80 | . 80 Core Hits 28 | . 28 Critical Kills . | . . Critical Parts Destroyed . | . . Critical Strikes 6 | . 6 Burn 6 | . 6 Melee Attacks . | . . Impact . | . . Slashing . | . . Piercing . | . . Sneak Attacks . | . . Combat Hostiles . | . . Follow-up Attacks . | . . Damage Inflicted 929 | . 929 Guns 929 | . 929 Cannons . | . . Explosions . | . . Melee . | . . Ramming . | . . Kinetic 193 | . 193 Thermal 736 | . 736 Explosive . | . . Electromagnetic . | . . Impact . | . . Slashing . | . . Piercing . | . . Highest Corruption 1 | . 1 Average Corruption 1 | . 1 Corruption Purged . | . . Corruption Blocked . | . . Effects 4 | . 4 Message Errors 2 | . 2 Matter Fused 2 | . 2 Overload Shots . | . . Overflow Damage . | . . Projectiles . | . . Explosions . | . . Melee . | . . Knockbacks . | . . Impact . | . . Kinetic . | . . Secondary . | . . Self-Inflicted Damage . | . . Shots . | . . Rammed . | . . Targets Rammed . | . . Kicked . | . . Crushed . | . . Highest Temperature 526 | . 526 Average Temperature 122 | . 122 Received Heat Transfer 324 | . 324 Effects 10 | . 10 Shutdowns 2 | . 2 Energy Bleed 1 | . 1 Interference 5 | . 5 Short Circuit 2 | . 2 Siege Activations . | . . Martial Activations . | . . Shielding Activations . | . . Robots Disrupted . | . . Combat Hostiles . | . . Robots Corrupted . | . . Combat Hostiles . | . . Parts Fried . | . . Impact Corruptions . | . . Robots Melted . | . . Combat Hostiles . | . . Parts Melted 7 | . 7 Heat Transferred 2393 | . 2393 Parts Sabotaged . | . . Parts Stolen . | . . Parts Stripped . | . . Power Chain Reactions . | . . Alert | -11 -10 ------- Run | Yrd Mat Maximum Alert Level . | . . Low Security (%) 100 | 100 100 Level 1 . | . . Level 2 . | . . Level 3 . | . . Level 4 . | . . Level 5 . | . . High Security . | . . Max Security . | . . Peak Influence 194 | . 194 Initial . | . . Average 37 | . 39 Influence Increases 457 | . 457 Destroy 0b10 Robot/C 300 | . 300 Destroy 0b10 Robot/NC 5 | . 5 Destroy Leader 72 | . 72 Successful Hack 20 | . 20 Disable Machine 15 | . 15 Lose Combat Pursuer 45 | . 45 Influence Decreases 283 | . 283 Time Decay 253 | . 253 Lost Part 30 | . 30 Squads Dispatched 5 | . 5 Investigation 2 | . 2 Extermination . | . . Reinforcement 3 | . 3 Assault . | . . Garrison . | . . Intercept . | . . Searches Triggered . | . . Construction Impeded . | . . Haulers Reinforced . | . . Active Scanning Responses . | . . Cargo Convoy Interrupts . | . . Stealth | -11 -10 --------- Run | Yrd Mat Distress Signals 1 | . 1 Communications Jammed . | . . Distress Signals . | . . Times Spotted 42 | . 42 Peak Tracking Total 5 | . 5 Tactical Retreats 7 | . 7 ECM-based Alert Blocks 6 | . 6 Traps | -11 -10 ------- Run | Yrd Mat Traps Triggered . | . . Indirectly . | . . Trap Hack Attempts . | . . Triggered . | . . Disarmed . | . . Reprogrammed . | . . Reused . | . . Traps Extracted . | . . Installed . | . . Triggered . | . . Machines | -11 -10 ---------- Run | Yrd Mat Machines Disabled 1 | . 1 Max in Single Turn 1 | . 1 Machines Repaired . | . . Machines Dismantled . | . . Machines Sabotaged . | . . Overloaded Fab Kills . | . . Hacking | -11 -10 --------- Run | Yrd Mat Machines Accessed 6 | . 6 Terminals 3 | . 3 Fabricators . | . . Repair Stations 1 | . 1 Recycling Units 2 | . 2 Scanalyzers . | . . Garrison Access . | . . Total Hacks 20 | . 20 Successful 11 | . 11 Failed 9 | . 9 Catastrophic . | . . Database Lockouts . | . . Manual 1 | . 1 Terminals 9 | . 9 Fabricators . | . . Repair Stations 6 | . 6 Recycling Units 5 | . 5 Scanalyzers . | . . Garrison Access . | . . Terminal Hacks 4 | . 4 Record 2 | . 2 Transport Status 1 | . 1 Zone Layout 1 | . 1 Fabricator Hacks . | . . Repair Station Hacks 3 | . 3 Scan Component 1 | . 1 Repair 1 | . 1 Refit 1 | . 1 Recycling Unit Hacks 4 | . 4 Process 1 | . 1 Report Inventory 2 | . 2 Retrieve Matter 1 | . 1 Scanalyzer . | . . Garrison Access Hacks . | . . Unauthorized Hacks . | . . Terminals . | . . Fabricators . | . . Repair Stations . | . . Recycling Units . | . . Scanalyzers . | . . Garrison Access . | . . Data Cores Recovered . | . . Used . | . . Hacking Detections 6 | . 6 Full Trace Events 4 | . 4 Feedback Events 1 | . 1 Corruption 1 | . 1 Feedback Blocked . | . . Robot Schematics Acquired . | . . Robots Built . | . . Authchips . | . . Time . | . . Total Robot Build Rating . | . . Part Schematics Acquired . | . . Parts Built . | . . Authchips . | . . Time . | . . Total Part Build Rating . | . . Part Studies Acquired . | . . Parts Repaired 1 | . 1 Time 26 | . 26 Parts Recycled . | . . Recycled Matter 257 | . 257 Retrieved Matter 419 | . 419 Retrieved Components . | . . Parts Scanalyzed . | . . Part Schematics Acquired . | . . Parts Damaged . | . . Bothacking | -11 -10 ------------ Run | Yrd Mat Used RIF Installer . | . . Robots Hacked . | . . Non-combat . | . . Combat . | . . Robot Hacks Applied . | . . Relay Couplers Released . | . . Fabnet Peak Effective % . | . . Robots Rewired . | . . Allies Hacked . | . . Hacks Repelled . | . . Allies | -11 -10 -------- Run | Yrd Mat Total Allies . | . . Largest Group . | . . Highest-Rated Group . | . . Highest-Rated Ally . | . . Total Orders . | . . Ally Attacks . | . . Total Damage . | . . Kills . | . . Allies Corrupted . | . . Allies Melted . | . . Intel | -11 -10 ------- Run | Yrd Mat Active Infowar (turns) 1035 | . 1035 ECM 1035 | . 1035 Robot Analysis Total . | . . Derelict Logs Recovered . | . . Drone Launches . | . . Drone Recoveries . | . . Exploration | -11 -10 ------------- Run | Yrd Mat Turns Passed 1502 | 62 1440 Spaces Moved 622 | 46 576 Core 11 | 11 . Treads 372 | 2 370 Legs 239 | 33 206 Wheels . | . . Hover . | . . Flight . | . . Fastest Speed 50 | 50 120 Average Speed 142 | 105 145 Slowest Speed 160 | 160 160 Overloaded Moves . | . . Propulsion Burnouts . | . . Robots Hopped . | . . Potential Cave-ins . | . . Cave-ins Triggered . | . . Exploration Rate (%) 39 | 4 74 Regions Visited 1 Branch Regions . Pre-discovered Areas . | . . Known Exits Taken . | . . Unknown Exits Taken 1 | 1 . Scrap Searched . | . . Spaces Dug . | . . Terrain Destroyed . | . . Melee . | . . Projectile . | . . AOE . | . . Terrain Rammed . | . . Walls Destroyed . | . . Machines Disabled . | . . Actions | -11 -10 --------- Run | Yrd Mat Total 1123 | 57 1066 Wait 334 | . 334 Move 621 | 45 576 Hop . | . . Pick Up 27 | 8 19 Fast Attach 8 | 4 4 Attach 6 | . 6 Detach 1 | . 1 Swap 10 | . 10 Drop 22 | . 22 Fire 94 | . 94 Melee . | . . Ram . | . . Kick . | . . Crush . | . . Escape Stasis . | . . Rewire . | . . Trap . | . . Miscellaneous . | . . Route ------- -11/Scrapyard -10/Materials (discovered 3 exits: [*Mat x2] / [*Sub]) History --------- Turn | Location | Event 13 | -11/Scrapyard | Discovered new exit (range 15) 63 | -11/Scrapyard | Entered Materials 331 | -10/Materials | Build established: Mutant 703 | -10/Materials | Repaired ECM Suite 855 | -10/Materials | Discovered new exit (range 13) 1017 | -10/Materials | Discovered new exit (range 5) 1189 | -10/Materials | Core integrity fell below 50% 1354 | -10/Materials | Core integrity fell below 20% 1414 | -10/Materials | Discovered new exit (range 4) 1503 | -10/Materials | Destroyed by G-34 Mercenary with Small Laser Last Messages --------------- 01391_ Acquired 21 matter. 01393_ Acquired 1 matter. 01394_ Imp. Ion Engine destroyed. 01397_ Acquired 1 matter. 01405_ S-10 Pest destroyed. 01405_ R-06 Scavenger collects Aluminum Leg. 01407_ R-06 Scavenger inserts Lgt. Assault Rifle into recycling unit. 01410_ R-06 Scavenger inserts Broken Particle Gun into recycling unit. 01411_ Dropped Imp. Treads. 01412_ O-16 Technician: "IFF HANDSHAKE FAILED. SECURING TERMINAL." 01414_ EXIT=FOUND 01421_ ALERT: Hostiles spotted, dispatching reinforcements to Terminal M001. 01424_ BMN#JD70FEFF9YX%B|WRQNHHEG7 Q6P,6CVSCYMS 01429_ R-06 Scavenger collects Aluminum Leg. 01496_ EQSRKOY9C OY WCTSC|1AECF/CWXAGFX2 [Achievement: Back For More] Map ----- +----------------------------------------------------+ | | | | | | | | | | | | | | | | | | | | | | | | | | | | | | | | | ????????????????????#############???????????? | | ?########???????????# #???????????? | | ?# #???????????# """ """ #???????????? | | ?# ! """#???????????# [ """ """ #???????????? | | ?# Y"#####???????# """ """ #???????????? | | ## """# #???????# """ """ #???????????? | | + [ # < #???????# #???????????? | | ## =%* # #???????# ! #???????????? | | ?####/### #################+###???????????? | | ?# = @ g #???????????? | | ## #???????????? | | ## ##########+######+###???????????? | | ## ########??????? !#! #???????????? | | ## ????????????? # """ #???????????? | | ## ??????????? # "T" #???????????? | | ## ??????????# # " " #???????????? | | ## ??????????# "" """ # #???????????? | | ## ??????????# "T """ # """#???????????? | | ## ??????????# "" """ # """#???????????? | | # ??????????# # ""?#???????????? | | # ?????????????######### ""?????????????? | | # ?????????????????????# "??????????????? | | # ?????????????????????# ??????????????? | | #?? ?????????????????????# ??????????????? | | #????????????????????????#/###??????????????? | | ????????????????????????? ?????????????????? | | ????????????????????????? ?????????????????? | | ????????????????????????? ?????????????????? | | ????????????????????????? #?????????????????? | | ????????????????????????????????????????????? | | ????????????????????????????????????????????? | | ????????????????????????????????????????????? | | ????????????????????????????????????????????? | | ????????????????????????????????????????????? | +----------------------------------------------------+ Best States ------------- Heat Dissipation 25 Energy Generation 12 Energy Capacity 265 Matter Stores 300 Matter Capacity 300 Sight Range 16 Terrain Scan Density 10 ECM Strength 1 Armor Coverage 80 Evasion (%) 55 Recoil Reduction 2 Item Schematics ----------------- None Robot Schematics ------------------ None Fabricated ------------ Nothing Repaired ---------- ECM Suite | 30% | -10/Materials Studied --------- None Alien Tech Used ----------------- None Achievements -------------- Back For More Challenges ------------ None Game ------ Seed TechTitaniumRailcannon Manual? 0 Play Time 00:18:40 Cumulative 15.8 hours Start 2025.10.25 @ 08:09:25 End 2025.10.25 @ 08:30:04 Sessions 1 Manual Loads 0 Difficulty Rogue Special Mode None Game No. 50 Rogue 50 Adventurer 0 Explorer 0 Win Type - Total 0 Types 0/0/0/0/0/0/0/0/0/0 Lore% 9 Gallery% 19 Achievement% 15 Wizard Run 0 Options --------- Layout 1 ASCII 0 Keyboard 0 Movement Mouse Keybinds 0 Fullscreen 1 Font 32/SmallcapsGlow Map View 50x35 Zoom Use 0% Tactical HUD 1 Map Filters NONE Filters NONE Steam 1 RUN: c7abff5a-0ada-404b-a7dc-f42d51e8e136